Workbook

Sheet Sheet1
A1: REGS | B1: REASON | E1: PREVIOUS | F1: NEW | G1: DIFFERENCE | H1: TYPE OF CHANGE
B4: DESIGNATED HANDLERS REPORT -
A5: 1205.331, .334, .335, .336, .512, .514, .531 | B5: Cotton (Handler Rept.) (inc. in respondents) | E5: 976.50 | F5: 1064.00 | G5: =F5-E5 -> 87.50 | H5: Adj.
A6: 1150.171 | B6: Dairy Producer Monthly Rept. (DA-20) (inc. in respondents) | E6: 3240.00 | F6: 3600.00 | G6: 360.00 | H6: Adj.
A7: 1160.401 | B7: Dairy Processor Monthly Report (DA-20R) (dec. in respondents) | E7: 1710.00 | F7: 1548.00 | G7: -162.00 | H7: Adj.
A8: 1250.347, .349, .352, .515, .516, .529 | B8: Eggs (Collecting Handler Report) (dec. in respondents) | E8: 340.63 | F8: 316.73 | G8: -23.90 | H8: Adj.
A9: 1240.33 | B9: Honey (Handler Information Form) (HON-HIF) Form DELETED, program termination | E9: 750.00 | F9: 0.00 | G9: -750.00 | H9: Adj.
A10: 1240.50 | B10: Honey (General Information) (HON-GIF) Form deleted, program termination | E10: 25.00 | F10: 0.00 | G10: -25.00 | H10: Adj.
A11: 1280.217, .218, .219, .220 | B11: Lamb (Monthly Remittance Report) LS-81 | E11: 6852.00 | F11: 6000.00 | G11: -852.00 | H11: Adj.
B12: END OF SEASON GINNING REPORT
A13: 1205.530 | B13: Cotton (Form CB-4.R1) (dec. in respondents & responses) | E13: 399.00 | F13: 324.50 | G13: =F13-E13 -> -74.50 | H13: Adj.
A14: 1150.152 | B14: Producer's Request for Credit Against Assessments (Dairy), Form deleted | E14: 0.20 | F14: 0.00 | G14: =F14-E14 -> -0.20 | H14: Adj.
B15: HONEY TRANSACTION REPORT | F15: 0.00 | G15: =F15-E15 -> 0.00 | H15: Adj.
A16: 1240.50(a) | B16: Domestic & Imported HON-HTR, Form DELETED, prog. terminated. | E16: 6773.00 | F16: 0.00 | G16: =F16-E16 -> -6773.00 | H16: Adj.
B17: REFERENDUM BALLOT
A18: 1205.202 | B18: Cotton (CN-100 & A,B,C, & D) (dec. in respondents) | E18: 653.54 | F18: 598.74 | G18: =F18-E18 -> -54.80 | H18: Adj.
A19: 1150.204 | B19: Dairy Continuance Referendum (Producer & Importer) DA-21. (Burden deleted, form submitted for future use) | E19: 800.00 | F19: 0.00 | G19: -800.00 | H19: Adj.
A20: 1160.501 | B20: Dairy- Fluid Milk (Processor) DA-21R. Burden deleted, form submitted for future use) | E20: 4 | F20: 0 | G20: -4.00 | H20: Adj.
A21: 1219.104 c | B21: Hass Avocados - Official Referendum Ballot (AVO-ORB) NEW form (separated from registration FV-326) (dec. in # of responses) | E21: 0.00 | F21: 193.75 | G21: 193.75 | H21: Adj.
A22: 1219.104 c | B22: Hass Avocados - Registration (FV-326) Separated from ballot and dec in number of responses per respondent | E22: 511.50 | F22: 193.75 | G22: -317.75 | H22: Adj.
A23: 1240.62(b) | B23: Honey (FV-182) Form DELETED, program termination | E23: 200.00 | F23: 0.00 | G23: -200.00 | H23: Adj.
A24: 1280.217, .218 | B24: Lamb | E24: 2093.00 | F24: 0.00 | G24: -2093.00 | H24: Adj.
B25: Application Assessment Exemption f/Producer or Importer (Certificate of Exemption issued if qualified; no burden)
A26: 1160.108 | B26: Dairy (Processor) Instructional Letter for Exemption | E26: 20.00 | F26: 0.00 | G26: =F26-E26 -> -20.00 | H26: Adj.
B27: Producer Cooperative's Request for Credit
A28: 1150.152 | B28: Dairy | E28: 4.00 | F28: 0.00 | G28: =F28-E28 -> -4.00 | H28: Adj.
A29: 1240.5 | B29: Honey Producer Information Request HON-PIR(form DELETED, program terminated) | E29: 1.25 | F29: 0.00 | G29: =F29-E29 -> -1.25 | H29: Adj.
A30: 1240.50 | B30: Honey Reduced Reporting Application HON-RRA(Form DELETED, prog. terminated) | E30: 10.00 | F30: 0.00 | G30: =F30-E30 -> -10.00 | H30: Adj.
A31: 1212.70 | B31: Honey P&I - Honey Handler Questionnaire (HON-HHQ) (NEW Form) | E31: 0.00 | F31: 10.00 | G31: =F31-E31 -> 10.00 | H31: Adj.
B32: PRODUCER/HANDLER EXEMPTION REGISTRATION
A33: 1250.348 1250.530 | B33: Eggs | E33: 59.43 | F33: 2.82 | G33: =F33-E33 -> -56.61 | H33: Adj.
B34: CERTIFICATION OF PRODUCER EXEMPTION
A35: 1250.530 | B35: Eggs (dec. in respondents) | E35: 10.13 | F35: 4.07 | G35: =F35-E35 -> -6.06 | H35: Adj.
B36: ORGANIC EXEMPTION REQUEST FORM
A37: 1205.519 | B37: Cotton (dec in respondents) | E37: 55.00 | F37: 15.00 | G37: =F37-E37 -> -40.00 | H37: Adj.
A38: 1150.157 | B38: Dairy (inc. in respondents) | E38: 450.00 | F38: 512.50 | G38: =F38-E38 -> 62.50 | H38: Adj.
A39: 1240. 114 | B39: Honey (Form Deleted) | E39: 5.00 | F39: 0.00 | G39: =F39-E39 -> -5.00 | H39: Adj.
B40: APPLICATION FOR CERTIFICATION OF ORGANIZATION
A41: 1240.32(b)(9)(10) | B41: Honey (Form DELETED, prog. Terminated) | E41: 4.50 | F41: 0.00 | G41: =F41-E41 -> -4.50 | H41: Adj.
A42: 1280.206 | B42: Lamb Producers, LS-82, (dec. in respondents) | E42: 10.00 | F42: 5.00 | G42: =F42-E42 -> -5.00 | H42: Adj.
A43: 1250.31 | B43: Pork (Delete form) | E43: 2.5 | F43: 0 | G43: =F43-E43 -> -2.50 | H43: Adj.
A44: 1221.107 | B44: Sorghum Nominate Bd. Memb. (dec. in respondents) | E44: 4.40 | F44: 2.00 | G44: =F44-E44 -> -2.40 | H44: Adj.
A45: 1220.103 | B45: Soybeans (Delete) No form, only letter requesting certification | E45: 0.5 | F45: 0 | G45: =F45-E45 -> -0.50 | H45: Adj.
B46: Application for Initial or Cont'd. Qualification of State or Regional Dairy Product Promotion research, or Nutrition Education Program | E46: 0 | F46: 0 | G46: 0.00
A47: 1150.153 | B47: Dairy (Producer) DA-15-CG, (inc. in respondets) | E47: 180 | F47: 183 | G47: =F47-E47 -> 3.00 | H47: Adj.
A48: 1150.152 | B48: Handler's Certification of Contributions to Qualified State/Regional Programs (Deleted) | E48: 0.2 | F48: 0 | G48: =F48-E48 -> -0.20 | H48: Adj.
B49: Nominations & Selections
A50: 1160.202 | B50: Dairy Processor (DA-19-1) (dec. in respondents) | E50: 10 | F50: 7.5 | G50: =F50-E50 -> -2.50 | H50: Adj.
A51: 1219.33 | B51: Hass Avocados (Domestic) (AVO-OPB) (NEW form, (Separated ballot from nomination form) | E51: 0 | F51: 1.98 | G51: =F51-E51 -> 1.98 | H51: Adj.
A52: 1219.33 | B52: Hass Avocados (Importers) (AVO-OIB) (NEW form, (Separated ballot from nomination form) | E52: 0.00 | F52: 0.99 | G52: =F52-E52 -> 0.99 | H52: Adj.
A53: 1240.32(b) | B53: Honey (Candidates Profile) (Form deleted, prog. Terminated) | E53: 12.00 | F53: 0.00 | G53: =F53-E53 -> -12.00 | H53: Adj.
A54: 1230.31 | B54: Pork (Nat'l Pork Prducers Del. Body) LS-35 (inc. in respondents) | E54: 25.00 | F54: 75.00 | G54: =F54-E54 -> 50.00 | H54: Adj.
B55: RECORDKEEPING REQ.
A56: 1205.338 | B56: Cotton (inc. in recordkeepers) | E56: 69.75 | F56: 76.00 | G56: =F56-E56 -> 6.25 | H56: Adj.
A57: 1150.172 | B57: Dairy (Producer) (dec. in respondents) | E57: 153.00 | F57: 122.40 | G57: -30.60 | H57: Adj.
A58: 1250.535 | B58: Eggs (dec. in respondents) | E58: 11.78 | F58: 7.45 | G58: -4.33 | H58: Adj.
A59: 1240.51 | B59: Honey (Producer) (Prog. terminated) | E59: 1653.00 | F59: 0.00 | G59: -1653.00 | H59: Adj.
A60: 1240.51 | B60: Honey (Handler, Importer, Packer) (deleted due to termination of program) | E60: 2269.72 | F60: 0.00 | G60: -2269.72 | H60: Adj.
B61: Difference due to rounding | F61: -2.65 | G61: -2.65 | H61: Adj
B62: TOTAL | E62: =SUM(E4:E60) -> 30349.53 | F62: =SUM(F4:F61) -> 14862.53 | G62: -15487.00
